[Event "Menorca Open-A 2022"]
[Site "Menorca"]
[Date "2022.04.22"]
[Round "4.11"]
[White "Bach, Oliver (Group B)"]
[Black "Guerra Reig, Juan (Group B)"]
[Result "1/2-1/2"]
[ECO "D53"]
[WhiteElo "1678"]
[BlackElo "1974"]
[Annotator "TA"]
[PlyCount "133"]
[EventDate "2022.04.20"]
[EventType "swiss"]
[EventCountry "ESP"]
[SourceTitle "playchess.com"]
[Source "ChessBase"]
[SourceQuality "1"]
[TimeControl "5400+30"]

{[%evp 11,133,33,27,37,72,66,62,25,50,50,108,27,23,21,21,24,18,18,27,18,18,15,20,19,22,12,12,13,12,12,25,18,43,46,39,29,41,23,29,0,0,0,6,0,26,18,41,41,50,4,4,6,6,13,10,8,12,10,10,8,9,0,0,0,0,0,0,0,0,0,0,0,0,0,0,0,0,0,0,0,0,0,0,0,0,0,0,0,0,-8,0,0,0,0,0,0,0,0,0,0,0,0,0,0,0,0,0,0,0,0,0,0,0,0,0,0,0,0,0,0,0,0,0,0]} 1. d4 {[%emt 1:31:00]} d5 {[%emt 1:31:00]} 2. Nf3 {[%emt 0:00:30]} Nf6 {[%emt 0:00:30]} 3. c4 {[%emt 0:00:30]} e6 {[%emt 0:00:30]} 4. Nc3 {[%emt 0:00:30]} Be7 {[%emt 0:00:30]} 5. Bg5 {[%emt 0:00:30]} c6 {[%emt 0:00:30]} 6. e3 {[%emt 0:00:30]} Ne4 {[%emt 0:00:30]} 7. Bxe7 {[%emt 0:00:30] D53: Queen's Gambit Declined: 4 Bg5 Be7: Early deviations.} Nxc3 {[%emt 0:00:30]} 8. bxc3 {[%emt 0:00:30]} Qxe7 {[%emt 0:00:30]} 9. Bd3 {[%emt 0:00:30] White is slightly better.} Nd7 {[%emt 0:00:30]} 10. O-O {[%emt 0:00:30]} e5 {[%emt 0:00:30]} ({Black should try} 10... O-O $14) 11. dxe5 {[%emt 0:00:30] White is more active.} (11. cxd5 $16 cxd5 12. e4) 11... dxc4 $11 {[%emt 0:00:30]} 12. Bxc4 {[%emt 0:00:30]} Nxe5 {[%emt 0:00:30]} 13. Nxe5 {[%emt 0:00:30]} Qxe5 {[%emt 0:00:30]} 14. Qd4 {[%emt 0:00:30]} Qxd4 {[%emt 0:00:30]} 15. exd4 {[%emt 0:00:30]} Be6 {[%emt 0:00:30]} 16. Rfe1 {[%emt 0:00:30]} Kd7 {[%emt 0:00:30]} 17. Bxe6+ {[%emt 0:00:30]} fxe6 {[%emt 0:00:30][%mdl 4096] [#] Endgame KRR-KRR} 18. Re5 $146 {[%emt 0:00:30]} ({Predecessor:} 18. Rab1 b6 {½-½ (18) Mostbauer,M (1901)-Ziebermayr,R (2175) Steyr 2011}) 18... Rhf8 {[%emt 0:00:30]} 19. Rae1 {[%emt 0:00:30]} Rae8 {[%emt 0:00:30]} 20. f3 {[%emt 0:00:30]} Rf6 {[%emt 0:00:30]} 21. Kf2 {[%emt 0:00:30]} Rh6 {[%emt 0:00:30]} 22. Rg5 {[%emt 0:00:30]} Re7 {[%emt 0:00:30]} 23. Kg3 {[%emt 0:00:30]} Rf7 {[%emt 0:00:30]} 24. Re4 {[%emt 0:00:30]} Rhf6 {[%emt 0:00:30]} 25. Reg4 {[%emt 0:00:30]} g6 {[%emt 0:00:30]} 26. Ra5 {[%emt 0:00:30]} a6 {[%emt 0:00:30]} 27. Re4 {[%emt 0:00:30]} Kd6 {[%emt 0:00:30]} (27... Rf5 $5 {[%cal Rf5a5]} 28. Rae5 Rxe5 29. Rxe5 Kd6 $11) 28. Rae5 {[%emt 0:00:30]} b5 {[%emt 0:00:30]} 29. Kf2 {[%emt 0:00:30]} Rc7 {[%emt 0:00:30]} 30. Ke3 {[%emt 0:00:30]} (30. g4 $14) 30... c5 {[%emt 0:00:30] The position is equal.} 31. dxc5+ {[%emt 0:00:30]} Rxc5 {[%emt 0:00:30]} 32. Rxc5 {[%emt 0:00:30]} Kxc5 {[%emt 0:00:30] KR-KR} 33. a4 {[%emt 0:00:30]} bxa4 {[%emt 0:00:30]} 34. Rxa4 {[%emt 0:00:30]} e5 {[%emt 0:00:30]} 35. Ra5+ {[%emt 0:00:30]} Kc4 {[%emt 0:00:30]} 36. Rxe5 {[%emt 0:00:30]} Kxc3 {[%emt 0:00:30]} 37. Re7 {[%emt 0:00:30]} h6 {[%emt 0:00:30]} 38. Rc7+ {[%emt 0:00:30]} Kb4 {[%emt 0:00:30]} 39. Kd4 {[%emt 0:00:30]} Rd6+ {[%emt 0:00:30]} 40. Ke5 {[%emt 0:00:30]} Rb6 {[%emt 0:00:30]} 41. Rc1 {[%emt 0:00:30]} a5 {[%emt 0:00:30]} 42. Rb1+ {[%emt 0:00:30]} Kc5 {[%emt 0:00:30]} 43. Rc1+ {[%emt 0:00:30]} Kb5 {[%emt 0:00:30]} 44. Rb1+ {[%emt 0:00:30]} Ka6 {[%emt 0:00:30]} 45. Ra1 {[%emt 0:00:30]} Rb2 {[%emt 0:00:30]} 46. g4 {[%emt 0:00:30]} Rxh2 {[%emt 0:00:30]} 47. Kf6 {[%emt 0:00:30]} g5 {[%emt 0:00:30]} 48. Kg7 {[%emt 0:00:30]} Kb5 {[%emt 0:00:30]} 49. Rb1+ {[%emt 0:00:30]} Kc5 {[%emt 0:00:30] [#] And now ...a4 would win.} 50. Rc1+ {[%emt 0:00:30]} Kb4 {[%emt 0:00:30]} 51. Rb1+ {[%emt 0:00:30]} Kc4 {[%emt 0:00:30] White must now prevent ...a4.} 52. Ra1 {[%emt 0:00:30]} Kb4 {[%emt 0:00:30] ...a4 is the strong threat.} 53. Rb1+ {[%emt 0:00:30]} Ka3 {[%emt 0:00:30]} (53... Kc3 $5 54. Ra1 Kb4 55. Rb1+ $11) 54. Ra1+ {[%emt 0:00:30]} Ra2 {[%emt 0:00:30]} ({Reject} 54... Kb4 55. Rb1+ $15) 55. Rh1 {[%emt 0:00:30]} (55. Rxa2+ Kxa2 56. Kxh6 Kb2 57. Kxg5 a4 $19) 55... Rf2 {[%emt 0:00:30]} 56. Kxh6 {[%emt 0:00:30]} Rxf3 {[%emt 0:00:30]} 57. Ra1+ {[%emt 0:00:30]} Kb4 {[%emt 0:00:30]} 58. Kxg5 {[%emt 0:00:30]} a4 {[%emt 0:00:30]} 59. Kh6 {[%emt 0:00:30]} Rh3+ {[%emt 0:00:30]} 60. Kg6 {[%emt 0:00:30]} Kb3 {[%emt 0:00:30]} 61. g5 {[%emt 0:00:30][%cal Bg4g5,Bg5g6,Bg6g7][%mdl 32]} a3 {[%emt 0:00:30]} 62. Kf7 {[%emt 0:00:30]} Rf3+ {[%emt 0:00:30]} 63. Kg7 {[%emt 0:00:30]} Kb2 {[%emt 0:00:30]} 64. Rxa3 {[%emt 0:00:30]} Rxa3 {[%emt 0:00:30]} 65. g6 {[%emt 0:00:30]} Kc3 {[%emt 0:00:30]} 66. Kf7 {[%emt 0:00:30]} Kd4 {[%emt 0:00:30]} 67. g7 {[%emt 0:00:30] Weighted Error Value: White=0.07 (flawless) /Black=0.05 (flawless)} 1/2-1/2

[Event "Menorca Open-A 2022"]
[Site "Menorca"]
[Date "2022.04.23"]
[Round "5.1"]
[White "Gukesh D"]
[Black "Aryan Chopra"]
[Result "1/2-1/2"]
[ECO "E15"]
[WhiteElo "2637"]
[BlackElo "2592"]
[Annotator "TA"]
[PlyCount "85"]
[EventDate "2022.04.20"]
[EventType "swiss"]
[EventCountry "ESP"]
[SourceTitle "playchess.com"]
[Source "ChessBase"]
[SourceQuality "1"]
[TimeControl "5400+30"]

{[%evp 16,85,19,23,10,6,25,7,7,5,5,3,14,14,0,0,0,0,16,-4,-9,-14,0,-10,0,0,0,0,9,-9,-6,-25,-18,-32,-41,-18,-32,-33,-4,-39,0,0,0,0,0,0,4,4,4,4,4,3,4,4,4,0,8,8,8,0,0,0,0,0,0,0,0,0,8,0,0,-8]} 1. d4 {[%emt 1:31:00]} Nf6 {[%emt 1:31:00]} 2. c4 {[%emt 0:00:30]} e6 {[%emt 0:00:30]} 3. Nf3 {[%emt 0:00:30]} b6 {[%emt 0:00:30]} 4. g3 {[%emt 0:00:30]} Ba6 {[%emt 0:00:30]} 5. b3 {[%emt 0:00:30]} Bb4+ {[%emt 0:00:30]} 6. Bd2 {[%emt 0:00:30]} Be7 {[%emt 0:00:30]} 7. Bg2 {[%emt 0:00:30]} d5 {[%emt 0:00:30] 7...0-0 gains popularity.} 8. O-O {[%emt 0:00:30]} O-O {[%emt 0:00:30]} 9. Ne5 {[%emt 0:00:30]} c5 {[%emt 0:00:30] E15: Queen's Indian: 4 g3 sidelines, 4 g3 Ba6 and 4 g3 Bb7 early deviations.} 10. dxc5 {[%emt 0:00:30]} Qc7 {[%emt 0:00:30]} 11. Nd3 {[%emt 0:00:30]} dxc4 {[%emt 0:00:30] [#]} 12. bxc4 $146 {[%emt 0:00:30]} ({Predecessor:} 12. cxb6 axb6 13. Bxa8 cxd3 14. Bf3 Nc6 15. e3 Nd5 16. a3 Rc8 17. Nc3 Nxc3 18. Bxc3 {½-½ (27) Novak,J (2488)-Acevedo Villalba,A (2513) ICCF email 2020}) 12... Bb7 {[%emt 0:00:30]} 13. Bf4 {[%emt 0:00:30]} Qc8 {[%emt 0:00:30]} 14. Bxb7 {[%emt 0:00:30]} Qxb7 {[%emt 0:00:30]} 15. cxb6 {[%emt 0:00:30]} axb6 {[%emt 0:00:30]} 16. Nd2 {[%emt 0:00:30]} Ne4 {[%emt 0:00:30]} 17. Nb3 {[%emt 0:00:30]} Rc8 {[%emt 0:00:30]} 18. f3 {[%emt 0:00:30]} Nf6 {[%emt 0:00:30][%cal Be4f6,Bf6d5,Bd5e7,Be7c6][%mdl 1056] Black has compensation.} ({Much less strong is} 18... Nc3 19. Qd2 Na4 20. Rab1 $14) 19. Qc2 {[%emt 0:00:30]} Nbd7 {[%emt 0:00:30][%cal Of6d5]} 20. a4 {[%emt 0:00:30]} Nd5 {[%emt 0:00:30]} 21. Bd2 $1 {[%emt 0:00:30]} Bf6 {[%emt 0:00:30]} 22. Rac1 {[%emt 0:00:30]} Qa7 {[%emt 0:00:30] [#] And now ...b5+ would win.} ({Resist} 22... Rxa4 {[#]} 23. Nbc5 $1 Rxc4 24. Qxc4 $14 (24. Nxb7 Rxc2 25. Rfd1 Rxc1 $17)) 23. Kg2 {[%emt 0:00:30]} Qxa4 {[%emt 0:00:30]} 24. e4 {[%emt 0:00:30]} Ne7 {[%emt 0:00:30]} 25. Be3 {[%emt 0:00:30]} Nc6 {[%emt 0:00:30]} 26. f4 {[%emt 0:00:30] Against Nce5} b5 {[%emt 0:00:30]} 27. e5 {[%emt 0:00:30]} Bd8 {[%emt 0:00:30]} (27... Be7 $5 {[%cal Re7a3]}) 28. Rfd1 {[%emt 0:00:30] The position is equal.} bxc4 {[%emt 0:00:30]} 29. Qxc4 {[%emt 0:00:30]} Qxc4 {[%emt 0:00:30]} 30. Rxc4 {[%emt 0:00:30]} Ne7 {[%emt 0:00:30]} 31. Rxc8 {[%emt 0:00:30]} Rxc8 {[%emt 0:00:30]} 32. Nb4 {[%emt 0:00:30]} Nb8 {[%emt 0:00:30]} 33. Ra1 {[%emt 0:00:30]} Nbc6 {[%emt 0:00:30]} 34. Nxc6 {[%emt 0:00:30]} Nxc6 {[%emt 0:00:30]} 35. Kf3 {[%emt 0:00:30]} f6 {[%emt 0:00:30]} 36. exf6 {[%emt 0:00:30]} Bxf6 {[%emt 0:00:30]} 37. Rd1 {[%emt 0:00:30]} Ne7 {[%emt 0:00:30]} 38. Nc5 {[%emt 0:00:30]} e5 {[%emt 0:00:30]} 39. Ne4 {[%emt 0:00:30]} exf4 {[%emt 0:00:30]} 40. Nxf6+ {[%emt 0:00:30]} gxf6 {[%emt 0:00:30]} 41. Bxf4 {[%emt 0:00:30]} Ng6 {[%emt 0:00:30]} 42. Bh6 {[%emt 0:00:30]} Ne5+ {[%emt 0:00:30]} 43. Ke4 {[%emt 0:00:30] An interesting draw.  Weighted Error Value: White=0.04 (flawless) /Black=0.06 (flawless)} 1/2-1/2

[Event "Menorca Open-A 2022"]
[Site "Menorca"]
[Date "2022.04.23"]
[Round "5.2"]
[White "Erigaisi Arjun"]
[Black "Sargsyan, Shant"]
[Result "0-1"]
[ECO "E20"]
[WhiteElo "2675"]
[BlackElo "2639"]
[Annotator "TA"]
[PlyCount "74"]
[EventDate "2022.04.20"]
[EventType "swiss"]
[EventCountry "ESP"]
[SourceTitle "playchess.com"]
[Source "ChessBase"]
[SourceQuality "1"]
[TimeControl "5400+30"]

{[%evp 9,74,1,18,11,23,0,0,0,0,0,0,0,0,0,0,0,0,0,21,0,23,0,51,-14,-20,-51,-45,-130,-122,-292,-329,-310,-297,-334,-370,-369,-355,-348,-320,-347,-347,-344,-344,-324,-286,-279,-125,-125,-126,-125,-126,-204,-204,-413,-395,-306,-376,-385,-377,-371,-364,-317,-314,-1500,-1443,-1168,-1050]} 1. d4 {[%emt 0:02:41][%cal Bd2d4,Bd4d5][%mdl 32]} Nf6 {[%emt 0:01:27]} 2. c4 {[%emt 0:00:05]} e6 {[%emt 0:00:12]} 3. Nc3 {[%emt 0:00:06]} Bb4 {[%emt 0:00:19]} 4. f3 {[%emt 0:00:06]} c5 {[%emt 0:00:29]} 5. d5 {[%emt 0:00:16]} b5 {[%emt 0:00:12]} 6. e4 {[%emt 0:00:06] E20: Nimzo-Indian: 4 g3 and 4 f3.} d6 $1 {[%emt 0:00:13][%mdl 4] is recently more successful than 6...bxc4.} 7. Nge2 {[%emt 0:00:13]} bxc4 {[%emt 0:01:35]} 8. Nf4 {[%emt 0:00:06] The position is equal.} g5 $5 {[%emt 0:01:08][%mdl 4] Leaves trodden paths.} (8... e5 $5 9. Nfe2 Ba6 $11) 9. Nfe2 {[%emt 0:09:12]} exd5 {[%emt 0:00:11]} 10. exd5 {[%emt 0:13:45]} Qe7 {[%emt 0:00:20]} 11. Bxg5 {[%emt 0:17:45] Black must now prevent Qd2.} Bxc3+ {[%emt 0:00:16]} 12. bxc3 {[%emt 0:00:05]} Nbd7 $1 {[%emt 0:00:13] Active counter play!} 13. Qd2 {[%emt 0:09:23] [#]} Ne5 $146 {[%emt 0:02:27]} ({Predecessor:} 13... Rg8 14. h4 Ne5 15. Kf2 h6 16. Bxh6 Nh5 17. Rh2 Nd3+ {½-½ (17) Yeo,G (2482)-Beecham,C (2478) ICCF email 2020}) 14. Kd1 {[%emt 0:01:18]} (14. Bxf6 $5 Qxf6 15. Ng3 $11) 14... Rg8 {[%emt 0:07:04][%cal Og8g5,Bh8g8,Bg8g6,Bg6g3][%mdl 32]} 15. Ng3 {[%emt 0:01:14]} Rb8 {[%emt 0:23:44]} (15... Rxg5 $1 $11 16. Qxg5 Nxd5) 16. Bh4 {[%emt 0:12:38]} (16. Be2 $14) 16... Rg6 $1 $11 {[%emt 0:02:10]} 17. Be2 {[%emt 0:10:36]} Qb7 $1 {[%emt 0:10:01]} 18. f4 {[%emt 0:03:21]} (18. Bxf6 $15 Rxf6 19. Re1) 18... Rxg3 $1 $17 {[%emt 0:03:29]} 19. Bxf6 {[%emt 0:05:05]} (19. hxg3 $17 Ne4 20. Qe3 (20. Qc2 $2 Qxd5+ 21. Ke1 Nd3+ 22. Kf1 Rb2 $19) 20... Qxd5+ 21. Kc2 (21. Ke1 $2 Ng4 $19)) 19... Rxg2 $19 {[%emt 0:09:23] Strongly threatening ...Ng4.} 20. fxe5 {[%emt 0:00:35][%cal Oe5e6] e6! is the strong threat.} Bg4 {[%emt 0:00:47][%cal Bc8g4,Bg4e2,Be2d3][%mdl 32] Inhibits e6.} 21. Re1 {[%emt 0:00:27] [#]} Qb1+ $3 {[%emt 0:01:06][%mdl 512]} 22. Rxb1 {[%emt 0:00:06]} Rxb1+ {[%emt 0:00:03]} 23. Qc1 {[%emt 0:00:05]} Bxe2+ {[%emt 0:00:20]} ({Not} 23... Rxc1+ 24. Kxc1 Bxe2 25. exd6 $15) 24. Kd2 {[%emt 0:00:05] [#]} Bd3+ {[%emt 0:02:14]} ({Weaker is} 24... Rxc1 25. Kxc1 Kd7 26. h3 $17) 25. Ke3 {[%emt 0:00:05]} Rxc1 {[%emt 0:00:08] Really sharp!} 26. Rxc1 {[%emt 0:00:04]} dxe5 {[%emt 0:00:48][%mdl 4096] Endgame KRB-KRB} ({And not} 26... Rxh2 27. exd6 Kd7 28. Be7 $19) 27. Kf3 {[%emt 0:00:56]} Rxh2 {[%emt 0:01:45]} (27... Re2 $19 {and Black stays clearly on top. And now ...Kd7 would win.} 28. Rg1 e4+ 29. Kg3 Rxa2) 28. Bxe5 $17 {[%emt 0:00:23]} Rxa2 {[%emt 0:00:53]} 29. Bd6 {[%emt 0:00:25]} Kd7 {[%emt 0:03:12]} 30. Bf8 {[%emt 0:01:07]} (30. Bxc5 $17 {keeps fighting.} Ra5 31. Bb4 Rxd5 32. Ra1) 30... f5 $19 {[%emt 0:03:24]} 31. d6 $2 {[%emt 0:01:17]} (31. Kf4 {might work better.}) 31... a5 {[%emt 0:03:47][%cal Ba7a5,Ba5a4,Ba4a3][%mdl 32]} 32. Rg1 {[%emt 0:01:35]} Be4+ {[%emt 0:00:12]} 33. Kf4 {[%emt 0:00:06]} Rg2 {[%emt 0:00:48]} 34. Ra1 {[%emt 0:00:05]} Rg8 {[%emt 0:00:12]} 35. Be7 {[%emt 0:00:06]} Ra8 {[%emt 0:00:03]} 36. Rg1 $2 {[%emt 0:02:38]} (36. Ke5) 36... a4 {[%emt 0:01:12]} 37. Rg7 {[%emt 0:00:05]} a3 {[%emt 0:00:32] Weighted Error Value: White=0.53/Black=0.08 (flawless)} 0-1

[Event "Menorca Open-A 2022"]
[Site "Menorca"]
[Date "2022.04.23"]
[Round "5.3"]
[White "Sadhwani, Raunak"]
[Black "Santos Latasa, Jaime"]
[Result "1/2-1/2"]
[ECO "C83"]
[WhiteElo "2628"]
[BlackElo "2656"]
[Annotator "TA"]
[PlyCount "50"]
[EventDate "2022.04.20"]
[EventType "swiss"]
[EventCountry "ESP"]
[SourceTitle "playchess.com"]
[Source "ChessBase"]
[SourceQuality "1"]
[TimeControl "5400+30"]

{[%evp 21,50,22,26,25,35,18,26,30,12,12,12,16,14,17,37,29,16,24,25,10,20,6,8,14,16,0,6,0,0,0,0]} 1. e4 {[%emt 0:01:28] Mikhalevski,V} e5 {[%emt 0:00:20]} 2. Nf3 {[%emt 0:00:34]} Nc6 {[%emt 0:00:04]} 3. Bb5 {[%emt 0:00:04]} a6 {[%emt 0:00:05]} 4. Ba4 {[%emt 0:00:03]} Nf6 {[%emt 0:00:04]} 5. O-O {[%emt 0:00:05]} Nxe4 {[%emt 0:00:04]} 6. d4 {[%emt 0:00:09]} b5 {[%emt 0:00:04]} 7. Bb3 {[%emt 0:00:04]} d5 {[%emt 0:00:05][%cal Bd7d5,Bd5d4,Bd4d3,Bd3c2][%mdl 32]} 8. dxe5 {[%emt 0:00:13]} Be6 {[%emt 0:00:05]} 9. Nbd2 {[%emt 0:01:17][%cal Bb1d2,Bd2b3,Bb3c5][%mdl 32]} Be7 {[%emt 0:00:52]} 10. c3 {[%emt 0:00:26]} Nc5 {[%emt 0:00:05]} 11. Bc2 {[%emt 0:00:51]} d4 {[%emt 0:00:11]} 12. Nb3 $1 {[%emt 0:00:50][%cal Rb3d4] C83: Open Ruy Lopez: 9 c3 Be7.} d3 {[%emt 0:00:05]} 13. Nxc5 {[%emt 0:00:38]} (13. Bb1 {is more complex.} Nxb3 14. axb3 Bf5 15. Be3) 13... dxc2 {[%emt 0:00:08]} 14. Qxd8+ {[%emt 0:00:04] White has an edge.} Rxd8 {[%emt 0:00:05][%cal Ba8d8,Bd8d5,Bd5e5,Be5e4,Be4d4,Bd4c4][%mdl 32]} ({Don't do} 14... Bxd8 15. Nxe6 fxe6 16. Be3 $16) 15. Nxe6 {[%emt 0:00:07]} fxe6 {[%emt 0:00:03]} 16. Be3 {[%emt 0:00:06]} Rd5 {[%emt 0:00:08]} 17. Rfc1 {[%emt 0:00:32][%cal Oc3c4]} Nxe5 {[%emt 0:00:06]} 18. Nxe5 {[%emt 0:00:16]} Rxe5 {[%emt 0:00:05]} 19. Rxc2 {[%emt 0:00:06]} Kf7 {[%emt 0:00:05]} 20. c4 {[%emt 0:00:21]} b4 {[%emt 0:00:56] The position is equal.} 21. Bf4 $5 {[%emt 0:00:24][%mdl 4] Leaves trodden paths.} Re4 {[%emt 0:01:41]} 22. g3 {[%emt 0:01:32]} Rd8 {[%emt 0:01:40]} 23. Kg2 {[%emt 0:06:57] [#]} Red4 $146 {[%emt 0:02:02]} ({Predecessor:} 23... g5 24. Be3 Re5 25. h3 Bc5 26. Bxc5 Rxc5 27. Re1 e5 28. b3 a5 29. Re3 a4 30. bxa4 {½-½ (42) Kharlov,A (2619)-Sorokin,M (2567) Kazan 2005 CBM 109 [Mikhalevski,V]}) 24. Bxc7 {[%emt 0:07:37]} Rc8 {[%emt 0:00:28]} 25. Bf4 {[%emt 0:00:18]} Rdxc4 {[%emt 0:00:32] A balanced but interesting game.  Weighted Error Value: White=0.05 (flawless) /Black=0.01 (flawless)} 1/2-1/2

[Event "Menorca Open-A 2022"]
[Site "Menorca"]
[Date "2022.04.23"]
[Round "5.4"]
[White "Sethuraman, S.P."]
[Black "Martirosyan, Haik M."]
[Result "1/2-1/2"]
[ECO "C54"]
[WhiteElo "2610"]
[BlackElo "2633"]
[Annotator "TA"]
[PlyCount "44"]
[EventDate "2022.04.20"]
[EventType "swiss"]
[EventCountry "ESP"]
[SourceTitle "playchess.com"]
[Source "ChessBase"]
[SourceQuality "1"]
[TimeControl "5400+30"]

{[%evp 11,44,9,12,8,13,6,18,9,25,24,23,15,21,11,48,45,45,58,56,51,57,14,41,29,46,39,29,30,28,39,46,7,21,0,21]} 1. e4 {[%emt 0:00:41]} e5 {[%emt 0:00:21]} 2. Nf3 {[%emt 0:00:08]} Nc6 {[%emt 0:00:16]} 3. Bc4 {[%emt 0:00:08]} Bc5 {[%emt 0:00:08]} 4. d3 {[%emt 0:00:07]} Nf6 {[%emt 0:00:14]} 5. O-O {[%emt 0:00:17]} d6 {[%emt 0:02:25]} 6. c3 {[%emt 0:00:11]} h6 {[%emt 0:00:18]} 7. b4 {[%emt 0:00:42] C54: Giuoco Piano: 4 c3 Nf6, main lines with 5 d4 and 5 d3.} Bb6 {[%emt 0:00:06]} 8. Nbd2 $1 {[%emt 0:01:05][%mdl 4] now scores much better than the old 8.a4.} O-O {[%emt 0:01:14]} 9. Re1 {[%emt 0:00:04]} a5 {[%emt 0:04:25]} 10. b5 {[%emt 0:01:02]} Ne7 {[%emt 0:00:11][%cal Bc6e7,Be7g6,Bg6f4,Bf4e6][%mdl 32]} 11. d4 {[%emt 0:01:17] [#]} exd4 $146 {[%emt 0:03:23]} ({Predecessor:} 11... Ng6 12. Bf1 Be6 13. Qc2 Re8 14. Bb2 a4 15. c4 exd4 16. Nxd4 Nd7 17. N2f3 Nge5 {0-1 (72) Svidler,P (2714)-Le,Q (2709) Saint Louis 2021}) 12. cxd4 {[%emt 0:00:16]} d5 {[%emt 0:10:10] [#]} 13. e5 $1 {[%emt 0:00:15]} Nh5 {[%emt 0:02:32]} 14. Bf1 {[%emt 0:01:03]} Nf4 {[%emt 0:00:23]} 15. Nb3 {[%emt 0:04:28]} Neg6 {[%emt 0:01:14]} 16. Be3 {[%emt 0:23:04]} f6 {[%emt 0:04:22]} (16... a4 $5 {[%cal Ra4b3]} 17. Nc5 Bxc5 18. dxc5 Bg4 $11) 17. Qc1 {[%emt 0:06:11]} a4 {[%emt 0:04:42]} 18. Nc5 {[%emt 0:02:39]} Bxc5 {[%emt 0:02:50]} 19. Qxc5 {[%emt 0:05:47]} Bg4 {[%emt 0:00:07]} 20. Bxf4 {[%emt 0:03:36]} Nxf4 {[%emt 0:00:12]} 21. Nd2 {[%emt 0:00:16]} Ne6 {[%emt 0:03:15]} 22. Qb4 {[%emt 0:06:07]} f5 {[%emt 0:08:19] Weighted Error Value: White=0.07 (flawless) /Black=0.09 (flawless)} 1/2-1/2

[Event "Menorca Open-A 2022"]
[Site "Menorca"]
[Date "2022.04.23"]
[Round "5.5"]
[White "Nihal Sarin"]
[Black "Grigorian, Spartak"]
[Result "1-0"]
[ECO "A46"]
[WhiteElo "2648"]
[BlackElo "2470"]
[Annotator "TA"]
[PlyCount "39"]
[EventDate "2022.04.20"]
[EventType "swiss"]
[EventCountry "ESP"]
[SourceTitle "playchess.com"]
[Source "ChessBase"]
[SourceQuality "1"]
[TimeControl "5400+30"]

{[%evp 9,39,13,27,27,24,0,0,0,0,0,0,0,83,71,116,34,60,27,88,106,853,888,1990,1959,1912,1892,1873,312,1828,1793,29994,29995]} 1. d4 {[%emt 0:00:48]} Nf6 {[%emt 0:00:05]} 2. Nf3 {[%emt 0:00:03]} e6 {[%emt 0:00:06]} 3. Bf4 {[%emt 0:00:03]} c5 {[%emt 0:01:23]} 4. e3 {[%emt 0:00:05]} cxd4 {[%emt 0:00:03]} 5. exd4 {[%emt 0:00:06]} Qb6 {[%emt 0:00:02]} 6. Qc1 {[%emt 0:01:38] Active counter play! A46: 1 d4 Nf6 2 Nf3 e6: Torre, London and Colle Systems.} Bd6 {[%emt 0:00:50] [#] And now ...Bxf4 would win.} 7. Bg3 $146 {[%emt 0:00:32]} ({Predecessor:} 7. Bg5 Be7 8. Bd3 Nc6 9. c3 h6 10. Be3 Qc7 11. O-O b6 12. a4 Bb7 13. Na3 {0-1 (24) Borges,J (2302)-Kaupert,V (2244) ICCF email 2016}) 7... Bxg3 {[%emt 0:02:12]} 8. hxg3 {[%emt 0:00:21] The position is equal.} Nc6 {[%emt 0:00:10]} 9. c3 {[%emt 0:00:05]} d6 {[%emt 0:08:00]} 10. Nbd2 {[%emt 0:03:11]} O-O {[%emt 0:03:27] [#]} (10... e5 $11 {keeps the balance.}) 11. Bd3 $1 $16 {[%emt 0:00:48] aiming for Nc4.} Re8 {[%emt 0:05:37]} 12. Ne4 {[%emt 0:22:30]} (12. Nc4 $16 Qc7 13. g4) 12... Nxe4 $14 {[%emt 0:03:31]} 13. Bxe4 {[%emt 0:00:37]} h6 {[%emt 0:03:19] [#]} (13... f5 $11 {remains equal.} 14. Bc2 Bd7) 14. Rxh6 $1 $16 {[%emt 0:07:12] Black must now prevent Rh7.} f5 $2 {[%emt 0:00:08][%mdl 8192] [#] This costs Black the game.} (14... gxh6 $2 15. Qxh6 f5 16. Ng5 $18) (14... e5 $16 15. Kf1 (15. Rxd6 $2 exd4 16. Ng5 Qc5 $19) 15... exd4 16. Bh7+ Kf8) 15. Qg5 $1 $18 {[%emt 0:17:51] Qg6 would kill now.} Qxb2 {[%emt 0:29:39] [#]} (15... Qd8 16. Qg6) 16. Rh8+ $1 {[%emt 0:00:12][%mdl 512]} Kxh8 {[%emt 0:00:16]} 17. Qh5+ {[%emt 0:00:01]} Kg8 {[%emt 0:00:06]} 18. Qxe8+ {[%emt 0:00:04]} Kh7 {[%emt 0:00:02]} 19. Rb1 {[%emt 0:00:10]} (19. Ng5+ Kh6 20. Nf7+ Kh7 $16) 19... Qxa2 {[%emt 0:01:42]} 20. g4 {[%emt 0:00:05] Weighted Error Value: White=0.17 (very precise) /Black=1.01} 1-0